fUSD/lending_fUSD_20260321
["ID","MTS","AMOUNT","RATE_DAILY","PERIOD"]
[408672422,1774101962163,-552.740209,0.0004,120]
[408672423,1774101962203,-505.255948,0.0004,120]
[408672424,1774101962243,-151.411074,0.0004,120]
[408672425,1774101962282,-727.832047,0.0004,120]
[408672426,1774101962325,-552.740212,0.0004,120]
[408672427,1774101962367,-505.255948,0.0004,120]
[408672428,1774101962411,-151.41107,0.0004,120]
[408672429,1774101962456,-727.832044,0.0004,120]
[408672430,1774101962499,-505.255948,0.0004,120]
[408672431,1774101962544,-151.0,0.0004,120]
[408672432,1774101962588,-505.255938,0.0004,120]
[408672433,1774101962635,-151.0,0.0004,120]
[408672434,1774101962677,-151.0,0.0004,60]
[408672435,1774101962719,-151.0,0.0004,120]
[408672436,1774101962756,-151.0,0.0004,60]
[408672437,1774101962794,-192.834211,0.0004,120]
[408672438,1774101962833,-281.246868,0.0004,120]
[408672439,1774101962872,-281.246868,0.0004,120]
[408672440,1774101962914,-3054.933107,0.0004,120]
[408672441,1774101962953,-281.246868,0.0004,120]
[408672442,1774101962993,-3054.933107,0.0004,120]
[408672443,1774101963034,-207.393305,0.0004,120]
[408672444,1774101963073,-3054.933107,0.0004,120]
[408672445,1774101963112,-281.246868,0.0004,120]
[408672446,1774101963155,-207.393305,0.0004,120]
[408672447,1774101963199,-3054.933106,0.0004,120]
[408672448,1774101963241,-207.393305,0.0004,120]
[408672449,1774101963283,-207.393306,0.0004,120]
[408672450,1774101963322,-2542.679491,0.0004,120]
[408672451,1774101963363,-2542.679491,0.0004,120]
[408672452,1774101963402,-1054.358938,0.0004,120]
[408672453,1774101963443,-2542.679491,0.0004,120]
[408672454,1774101963482,-1054.358938,0.0004,120]
[408672455,1774101963521,-151.0,0.0004,60]
[408672456,1774101963563,-2542.6795,0.0004,120]
[408672457,1774101963607,-1054.358938,0.0004,120]
[408672458,1774101963655,-151.0,0.0004,60]
[408672459,1774101963696,-1573.749365,0.0004,120]
[408672460,1774101963738,-1054.358935,0.0004,120]
[408672461,1774101963781,-195.537698,0.0004,60]
[408672462,1774101963823,-1573.749365,0.0004,120]
[408672463,1774101963865,-1573.749365,0.0004,120]
[408672464,1774101963908,-891.531967,0.0004,120]
[408672465,1774101963951,-1573.749372,0.0004,120]
[408672466,1774101963996,-891.531967,0.0004,120]
[408672467,1774101964039,-891.531967,0.0004,120]
[408672468,1774101964082,-891.531959,0.0004,120]
[408672469,1774101964125,-834.456534,0.0004,120]
[408672470,1774101964167,-609.015737,0.0004,120]
[408672471,1774101964212,-151.0,0.0004,120]
[408672472,1774101964252,-609.015737,0.0004,120]
[408672473,1774101964294,-834.456534,0.0004,120]
[408672474,1774101964333,-151.0,0.0004,120]
[408672475,1774101964371,-609.015737,0.0004,120]
[408672476,1774101964409,-834.456534,0.0004,120]
[408672477,1774101964448,-609.015743,0.0004,120]
[408672478,1774101964487,-1712.198209,0.0004,120]
[408672479,1774101964525,-834.456536,0.0004,120]
[408672480,1774101964562,-151.0,0.0004,120]
[408672481,1774101964604,-520.866256,0.0004,120]
[408672482,1774101964649,-1712.198209,0.0004,120]
[408672483,1774101964689,-1712.198209,0.0004,120]
[408672484,1774101964732,-520.866256,0.0004,120]
[408672485,1774101964773,-1712.198201,0.0004,120]
[408672486,1774101964814,-520.866256,0.0004,120]
[408672487,1774101964852,-151.0,0.0004,120]
[408672488,1774101965035,-520.86626,0.0004,120]
[408672489,1774101965078,-405.56367,0.0004,120]
[408672490,1774101965122,-151.0,0.0004,120]
[408672491,1774101965163,-676.750837,0.0004,120]
[408672492,1774101965204,-151.0,0.0004,120]
[408672493,1774101965245,-405.56367,0.0004,120]
[408672494,1774101965283,-151.0,0.0004,120]
[408672495,1774101965323,-676.750837,0.0004,120]
[408672496,1774101965362,-459.991726,0.0004,120]
[408672497,1774101965401,-151.0,0.0004,120]
[408672498,1774101965440,-187.532859,0.0004,120]
[408672499,1774101965480,-676.750837,0.0004,120]
[408672500,1774101965519,-405.56367,0.0004,120]
[408672501,1774101965556,-459.991726,0.0004,120]
[408672502,1774101965596,-712.452131,0.0004,120]
[408672503,1774101965642,-692.808136,0.0004,120]
[408672504,1774101965682,-676.750836,0.0004,120]
[408672505,1774101965721,-1771.592978,0.0004,120]
[408672506,1774101965767,-405.563679,0.0004,120]
[408672507,1774101965808,-459.991726,0.0004,120]
[408672508,1774101965852,-712.452131,0.0004,120]
[408672509,1774101965894,-692.808136,0.0004,120]
[408672510,1774101965936,-1771.592978,0.0004,120]
[408672511,1774101965975,-459.99172,0.0004,120]
[408672512,1774101966017,-712.452131,0.0004,120]
[408672513,1774101966056,-692.808136,0.0004,120]
[408672514,1774101966099,-1843.760522,0.0004,120]
[408672515,1774101966139,-1771.592978,0.0004,120]
[408672516,1774101966179,-712.452127,0.0004,120]
[408672517,1774101966220,-393.86226,0.0004,120]
[408672518,1774101966262,-692.808139,0.0004,120]
[408672519,1774101966303,-151.0,0.0004,120]
[408672520,1774101966346,-1843.760522,0.0004,120]
[408672521,1774101966396,-1771.592982,0.0004,120]
[408672522,1774101966446,-393.86226,0.0004,120]
[408672523,1774101966500,-1843.760522,0.0004,120]
[408672524,1774101966544,-393.86226,0.0004,120]
[408672525,1774101966588,-1843.760514,0.0004,120]
[408672526,1774101966633,-777.990073,0.0004,120]
[408672527,1774101966678,-393.862258,0.0004,120]
[408672528,1774101966723,-151.0,0.0004,120]
[408672529,1774101966767,-777.990073,0.0004,120]
[408672530,1774101966811,-777.990073,0.0004,120]
[408672531,1774101966857,-183.064559,0.0004,120]
[408672532,1774101966899,-777.990078,0.0004,120]
[408672533,1774101966941,-183.064559,0.0004,120]
[408672534,1774101966982,-151.0,0.0004,120]
[408672535,1774101967024,-183.064559,0.0004,120]
[408672536,1774101967067,-151.0,0.0004,120]
[408672537,1774101967116,-183.064558,0.0004,120]
[408672538,1774101967163,-151.0,0.0004,120]
[408672539,1774101967207,-1972.079833,0.0004,120]
[408672540,1774101967252,-666.653279,0.0004,120]
[408672541,1774101967298,-645.458031,0.0004,31]
[408672542,1774101967343,-1972.079833,0.0004,120]
[408672543,1774101967386,-666.653279,0.0004,120]
[408672544,1774101967435,-152.167131,0.0004,120]
[408672545,1774101967477,-645.458031,0.0004,31]
[408672546,1774101967519,-1972.079833,0.0004,120]
[408672547,1774101967563,-666.653279,0.0004,120]
[408672548,1774101967605,-645.458031,0.0004,31]
[408672549,1774101967653,-152.167131,0.0004,120]
[408672550,1774101967694,-1972.079837,0.0004,120]
[408672551,1774101967735,-666.653274,0.0004,120]
[408672552,1774101967777,-152.167131,0.0004,120]
[408672553,1774101967819,-645.458027,0.0004,31]
[408672554,1774101967860,-152.167136,0.0004,120]
[408672555,1774101967902,-1268.34907,0.0004,120]
[408672556,1774101967949,-1268.34907,0.0004,120]
[408672557,1774101967990,-1268.34907,0.0004,120]
[408672558,1774101968031,-1268.349069,0.0004,120]
[408672559,1774101968204,-168.577783,0.0004,120]
[408672560,1774101968247,-168.577783,0.0004,120]
[408672561,1774101968286,-168.577783,0.0004,120]
[408672562,1774101968327,-1009.442137,0.0004,120]
[408672563,1774101968366,-1561.827179,0.0004,120]
[408672564,1774101968408,-168.577781,0.0004,120]
[408672565,1774101968449,-1009.442137,0.0004,120]
[408672566,1774101968489,-1561.827179,0.0004,120]
[408672567,1774101968530,-1561.827179,0.0004,120]
[408672568,1774101968569,-1009.442137,0.0004,120]
[408672569,1774101968612,-1561.827171,0.0004,120]
[408672570,1774101968656,-1009.442129,0.0004,120]
[408672571,1774101968699,-151.0,0.0004,120]
[408672572,1774101968741,-290.994745,0.0004,120]
[408672573,1774101968781,-151.0,0.0004,120]
[408672574,1774101968822,-290.994745,0.0004,120]
[408672575,1774101968864,-290.994745,0.0004,120]
[408672576,1774101968905,-151.0,0.0004,120]
[408672577,1774101968949,-287.963644,0.0004,120]
[408672578,1774101968992,-290.99475,0.0004,120]
[408672579,1774101969035,-151.0,0.0004,120]
[408672580,1774101969078,-151.0,0.0004,120]
[408672581,1774101969121,-287.963644,0.0004,120]
[408672582,1774101969162,-1759.852091,0.0004,120]
[408672583,1774101969203,-151.0,0.0004,120]
[408672584,1774101969244,-1759.852091,0.0004,120]
[408672585,1774101969284,-221.156226,0.0004,120]
[408672586,1774101969325,-287.963644,0.0004,120]
[408672587,1774101969365,-1759.852091,0.0004,120]
[408672588,1774101969405,-221.156226,0.0004,120]
[408672589,1774101969447,-151.0,0.0004,120]
[408672590,1774101969491,-287.963644,0.0004,120]
[408672591,1774101969534,-252.737804,0.0004,120]
[408672592,1774101969575,-165.167449,0.0004,120]
[408672593,1774101969618,-221.156226,0.0004,120]
[408672594,1774101969661,-1759.852098,0.0004,120]
[408672595,1774101969702,-252.737804,0.0004,120]
[408672596,1774101969743,-221.156219,0.0004,120]
[408672597,1774101969785,-252.737804,0.0004,120]
[408672598,1774101969825,-151.0,0.0004,120]
[408672599,1774101969866,-936.003437,0.0004,120]
[408672600,1774101969908,-209.178984,0.0004,120]
[408672601,1774101969949,-252.737799,0.0004,120]
[408672602,1774101969989,-151.0,0.0004,120]
[408672603,1774101970029,-936.003437,0.0004,120]
[408672604,1774101970070,-151.0,0.0004,120]
[408672605,1774101970119,-209.178984,0.0004,120]
[408672606,1774101970161,-151.0,0.0004,120]
[408672607,1774101970201,-936.003437,0.0004,120]
[408672608,1774101970242,-209.178984,0.0004,120]
[408672609,1774101970282,-403.753668,0.0004,120]
[408672610,1774101970320,-162.574728,0.0004,120]
[408672611,1774101970361,-936.00344515,0.0004,120]
[408672612,1774101970402,-239.661467,0.0004,120]
[408672613,1774101970442,-209.178994,0.0004,120]
[408672614,1774101970486,-151.0,0.0004,120]
[408672615,1774101970526,-403.753668,0.0004,120]
[408672616,1774101970566,-162.574728,0.0004,120]
[408672617,1774101970609,-403.753668,0.0004,120]
[408672618,1774101970653,-162.574728,0.0004,120]
[408672619,1774101970695,-403.753666,0.0004,120]
[408672620,1774101970737,-162.574725,0.0004,120]
[408672621,1774101970780,-175.958671,0.0004,120]
[408672622,1774101970821,-338.008441,0.0004,30]
[408672623,1774101970862,-157.353985,0.0004,120]
[408672624,1774101970902,-151.0,0.0004,120]
[408672625,1774101970944,-151.0,0.0004,120]
[408672626,1774101970983,-338.008441,0.0004,30]
[408672627,1774101971134,-157.353985,0.0004,120]
[408672628,1774101971174,-151.0,0.0004,120]
[408672629,1774101971213,-152.980122,0.0004,120]
[408672630,1774101971254,-151.0,0.0004,120]
[408672631,1774101971295,-338.008441,0.0004,30]
[408672632,1774101971338,-151.0,0.0004,120]
[408672633,1774101971380,-157.353985,0.0004,120]
[408672634,1774101971422,-338.008435,0.0004,30]
[408672635,1774101971464,-157.353978,0.0004,120]
[408672636,1774101971505,-3615.065818,0.0004,120]
[408672637,1774101971547,-151.0,0.0004,120]
[408672638,1774101971587,-3615.065818,0.0004,120]
[408672639,1774101971629,-151.0,0.0004,120]
[408672640,1774101971671,-494.41673594,0.00040251,120]
[408672641,1774101971713,-5000.0,0.000403,120]
[408672642,1774101971754,-554.25027779,0.00040301,73]
[408672643,1774101971792,-463.1025624,0.00040304,120]
[408672644,1774101971832,-730.0,0.00040316,120]
[408672645,1774101971871,-511.0,0.00040316,120]
[408672646,1774101971912,-358.0,0.00040316,120]
[408672647,1774101971954,-251.0,0.00040316,120]
[408672648,1774101971999,-990.0,0.00040547,120]
[408672649,1774101972041,-300.0,0.00040597,79]
[408672650,1774101972084,-591.0,0.00040682,120]
[408672651,1774101972128,-414.0,0.00040682,120]
[408672652,1774101972175,-248.0,0.00040682,120]
[408672653,1774101972218,-215.0,0.00040682,120]
[408672654,1774101972262,-168.0,0.00040682,120]
[408672655,1774101972305,-168.0,0.00040682,120]
[408672656,1774101972349,-168.0,0.00040682,120]
[408672657,1774101972394,-167.0,0.00040766,120]
[408672658,1774101972436,-167.0,0.00040766,120]
[408672659,1774101972479,-168.0,0.00040766,120]
[408672660,1774101972520,-4092.0,0.00040792,120]
[408672661,1774101972562,-4092.0,0.00040792,120]
[408672662,1774101972607,-1044.05,0.000408,30]
[408672663,1774101972653,-772.86,0.000408,30]
[408672664,1774101972696,-635.97,0.000408,30]
[408672665,1774101972737,-4092.0,0.00040802,120]
[408672666,1774101972781,-4092.0,0.00040802,120]
[408672667,1774101972821,-4092.0,0.00040802,120]
[408672668,1774101972861,-4095.09,0.00040802,120]
[408672669,1774101972902,-4092.0,0.00040812,120]
[408672670,1774101972942,-4092.0,0.00040812,120]
[408672671,1774101972981,-4092.0,0.00040812,120]
[408672672,1774101973022,-4092.0,0.00040812,120]
[408672673,1774101973065,-5000.0,0.000409,120]
[408672674,1774101973107,-20000.0,0.000409,120]
[408672675,1774101973148,-505.62,0.000409,30]
[408672676,1774101973188,-286.49,0.000409,30]
[408672677,1774101973227,-500.0,0.00040949,120]
[408672678,1774101973266,-36372.0,0.0004095,60]
[408672679,1774101973307,-639.21748582,0.00041,30]
[408672680,1774101973346,-8000.0,0.00041,120]
[408672681,1774101973385,-8000.0,0.00041,120]
[408672682,1774101973423,-8000.0,0.00041,120]
[408672683,1774101973461,-8000.0,0.00041,120]
[408672684,1774101973501,-8000.0,0.00041,120]
[408672685,1774101973538,-8000.0,0.00041,120]
[408672686,1774101973577,-8000.0,0.00041,120]
[408672687,1774101973617,-5000.0,0.00041,120]
[408672688,1774101973659,-3000.0,0.00041,30]
[408672689,1774101973702,-661.65327321,0.00041,30]
[408672690,1774101973744,-382.80868674,0.00041068,120]
[408672691,1774101973786,-50000.0,0.00041096,60]
[408672692,1774101973944,-217.47,0.00041096,60]
[408672693,1774101973990,-151.28090834,0.00041096,120]
[408672694,1774101974033,-3730.0,0.00041096,120]
[408672695,1774101974076,-3481.06173952,0.000411,120]
[408672696,1774101974121,-990.0,0.00041369,120]
[408672697,1774101974161,-150.0,0.00041452,120]
[408672698,1774101974202,-277.15195125,0.00041499,30]
[408672699,1774101974242,-500.0,0.00041499,120]
[408672700,1774101974280,-500.0,0.00041499,120]
[408672701,1774101974319,-478821.71577731,0.000415,30]
[408672702,1774101974358,-151.0,0.000415,120]
[408672703,1774101974397,-151.0,0.000415,120]
[408672704,1774101974434,-151.0,0.000415,120]
[408672705,1774101974473,-151.0,0.000415,120]
[408672706,1774101974512,-199.942615,0.000415,30]
[408672707,1774101974550,-199.942615,0.000415,30]
[408672708,1774101974590,-199.942615,0.000415,30]
[408672709,1774101974630,-199.942614,0.000415,30]
[408672710,1774101974668,-151.0,0.000415,120]
[408672711,1774101974708,-189.460989,0.000415,35]
[408672712,1774101974746,-151.0,0.000415,90]
[408672713,1774101974783,-151.0,0.000415,90]
[408672714,1774101974822,-151.0,0.000415,120]
[408672715,1774101974859,-151.0,0.000415,120]
[408672716,1774101974896,-151.0,0.000415,120]
[408672717,1774101974936,-151.0,0.000415,120]
[408672718,1774101974975,-400.0,0.000415,120]
[408672719,1774101975013,-400.0,0.000415,120]
[408672720,1774101975051,-400.0,0.000415,120]
[408672721,1774101975094,-400.0,0.000415,120]
[408672722,1774101975133,-151.0,0.000415,120]
[408672723,1774101975174,-151.0,0.000415,120]
[408672724,1774101975213,-151.0,0.000415,120]
[408672725,1774101975252,-151.0,0.000415,120]
[408672726,1774101975292,-155.187935,0.000415,120]
[408672727,1774101975335,-151.0,0.000415,120]
[408672728,1774101975381,-405.28413,0.000415,120]
[408672729,1774101975427,-405.28413,0.000415,120]
[408672730,1774101975470,-405.28413,0.000415,120]
[408672731,1774101975510,-405.284138,0.000415,120]
[408672732,1774101975550,-413.221572,0.000415,120]
[408672733,1774101975589,-413.221572,0.000415,120]
[408672734,1774101975628,-413.221572,0.000415,120]
[408672735,1774101975667,-413.221578,0.000415,120]
[408672736,1774101975707,-396.201938,0.000415,120]
[408672737,1774101975749,-396.201938,0.000415,120]
[408672738,1774101975790,-396.201938,0.000415,120]
[408672739,1774101975829,-396.201948,0.000415,120]
[408672740,1774101975867,-151.0,0.000415,120]
[408672741,1774101975904,-463.1025624,0.00041705,120]
[408672742,1774101975941,-233.24421167,0.00042,120]
[408672743,1774101975980,-5000.0,0.00042,120]
[408672744,1774101976018,-5000.0,0.00042,120]
[408672745,1774101976055,-5000.0,0.00042,120]
[408672746,1774101976093,-5000.0,0.00042,120]
[408672747,1774101976132,-5000.0,0.00042,120]
[408672748,1774101976173,-5000.0,0.00042,120]
[408672749,1774101976212,-5000.0,0.00042,120]
[408672750,1774101976257,-5000.0,0.00042,120]
[408672751,1774101976300,-5000.0,0.00042,120]
[408672752,1774101976343,-5000.0,0.00042,120]
[408672753,1774101976385,-5000.0,0.00042,120]
[408672754,1774101976429,-500.0,0.00042,120]
[408672755,1774101976557,-4000.0,0.00042,120]
[408672756,1774101976620,-2000.0,0.00042,60]
[408672757,1774101976662,-1500.0,0.00042,120]
[408672758,1774101976704,-20000.0,0.00042,120]
[408672759,1774101976746,-217.5773636,0.00042,120]
[408672760,1774101976788,-399.0,0.00042,120]
[408672761,1774101976829,-8250.0,0.00042,120]
[408672762,1774101976871,-13915.41,0.00042,120]
[408672763,1774101976913,-470.68,0.00042,120]
[408672764,1774101976955,-793.49303505,0.00042141,82]
[408672765,1774101977000,-990.0,0.00042191,120]
[408672766,1774101977044,-494.41673594,0.00042257,120]
[408672767,1774101977088,-313.69465135,0.00042299,120]
[408672768,1774101977133,-159.0,0.000423,120]
[408672769,1774101977175,-36372.0,0.000423,60]
[408672770,1774101977218,-730.0,0.00042332,120]
[408672771,1774101977263,-511.0,0.00042332,120]
[408672772,1774101977305,-358.0,0.00042332,120]
[408672773,1774101977346,-251.0,0.00042332,120]
[408672774,1774101977387,-50000.0,0.00042466,65]
[408672775,1774101977429,-250.0,0.00042534,30]
[408672776,1774101977475,-250.0,0.00042534,30]
[408672777,1774101977519,-250.0,0.00042534,30]
[408672778,1774101977563,-1076.64251632,0.00043,120]
[408672779,1774101977605,-255.7,0.00043,120]
[408672780,1774101977652,-5093.0,0.00043,120]
[408672781,1774101977694,-500.0,0.00043,45]
[408672782,1774101977737,-500.0,0.00043,45]
[408672783,1774101977782,-500.0,0.00043,45]
[408672784,1774101977827,-500.0,0.00043,45]
[408672785,1774101977871,-500.0,0.00043,45]
[408672786,1774101977915,-500.0,0.00043,45]
[408672787,1774101977959,-500.0,0.00043,45]
[408672788,1774101978001,-500.0,0.00043,45]
[408672789,1774101978048,-500.0,0.00043,45]
[408672790,1774101978091,-500.0,0.00043,45]
[408672791,1774101978132,-20000.0,0.00043,120]
[408672792,1774101978174,-990.0,0.00043013,120]
[408672793,1774101978214,-63450.87837114,0.000432,30]
[408672794,1774101978254,-9996.0,0.000434,120]
[408672795,1774101978295,-500.0,0.000435,45]
[408672796,1774101978334,-500.0,0.000435,45]
[408672797,1774101978373,-500.0,0.000435,45]
[408672798,1774101978411,-500.0,0.000435,45]
[408672799,1774101978448,-500.0,0.000435,45]
[408672800,1774101978488,-500.0,0.000435,45]
[408672801,1774101978527,-500.0,0.000435,45]
[408672802,1774101978565,-500.0,0.000435,45]
[408672803,1774101978602,-500.0,0.000435,45]
[408672804,1774101978649,-500.0,0.000435,45]
[408672805,1774101978693,-36372.0,0.0004365,60]
[408672806,1774101978733,-13915.41,0.0004368,120]
[408672807,1774101978772,-470.68,0.0004368,120]
[408672808,1774101978813,-3042.0,0.000438,120]
[408672809,1774101978854,-486.1961065,0.00043835,120]
[408672810,1774101978895,-50000.0,0.00043836,70]
[408672811,1774101978937,-244.53,0.00043836,120]
[408672812,1774101978979,-244.53,0.00043836,120]
[408672813,1774101979020,-244.53,0.00043836,120]
[408672814,1774101979061,-244.53,0.00043836,120]
[408672815,1774101979099,-193.592427,0.00043836,120]
[408672816,1774101979236,-193.592427,0.00043836,120]
[408672817,1774101979277,-193.592427,0.00043836,120]
[408672818,1774101979317,-193.592427,0.00043836,120]
[408672819,1774101979360,-300.0,0.00043836,30]
[408672820,1774101979403,-300.0,0.00043836,30]
[408672821,1774101979446,-279.0,0.00043836,30]
[408672822,1774101979489,-150.0,0.00043836,30]
[408672823,1774101979532,-163.0,0.00043836,30]
[408672824,1774101979574,-168.0,0.00043836,30]
[408672825,1774101979620,-450.0,0.00043836,30]
[408672826,1774101979662,-431.0,0.00043836,30]
[408672827,1774101979704,-215.0,0.00043836,30]
[408672828,1774101979745,-400.0,0.00043836,30]
[408672829,1774101979787,-400.0,0.00043836,30]
[408672830,1774101979827,-327.0,0.00043836,30]
[408672831,1774101979865,-250.0,0.00043836,30]
[408672832,1774101979907,-250.0,0.00043836,30]
[408672833,1774101979948,-203.0,0.00043836,30]
[408672834,1774101979989,-400.0,0.00043836,30]
[408672835,1774101980030,-400.0,0.00043836,30]
[408672836,1774101980069,-389.0,0.00043836,30]
[408672837,1774101980108,-350.0,0.00043836,30]
[408672838,1774101980147,-350.0,0.00043836,30]
[408672839,1774101980186,-278.0,0.00043836,30]
[408672840,1774101980225,-1139.0,0.00043836,30]
[408672841,1774101980264,-1045.0,0.00043836,30]
[408672842,1774101980304,-150.0,0.00043836,30]
[408672843,1774101980348,-233.0,0.00043836,30]
[408672844,1774101980390,-150.0,0.00043836,30]
[408672845,1774101980431,-154.0,0.00043836,30]
[408672846,1774101980474,-150.0,0.00043836,30]
[408672847,1774101980515,-172.0,0.00043836,30]
[408672848,1774101980555,-164.0,0.00043836,30]
[408672849,1774101980598,-150.0,0.00043836,30]
[408672850,1774101980641,-199.0,0.00043836,30]
[408672851,1774101980681,-196.0,0.00043836,30]
[408672852,1774101980724,-150.0,0.00043836,30]
[408672853,1774101980764,-298.0,0.00043836,30]
[408672854,1774101980805,-298.0,0.00043836,30]
[408672855,1774101980847,-150.0,0.00043836,30]
[408672856,1774101980888,-261.0,0.00043836,30]
[408672857,1774101980929,-194.0,0.00043836,30]
[408672858,1774101980974,-150.0,0.00043836,30]
[408672859,1774101981014,-255.0,0.00043836,30]
[408672860,1774101981053,-174.0,0.00043836,30]
[408672861,1774101981093,-150.0,0.00043836,30]
[408672862,1774101981134,-291.0,0.00043836,30]
[408672863,1774101981173,-276.0,0.00043836,30]
[408672864,1774101981213,-230.0,0.00043836,30]
[408672865,1774101981253,-425.0,0.00043836,30]
[408672866,1774101981292,-298.0,0.00043836,30]
[408672867,1774101981333,-150.0,0.00043836,30]
[408672868,1774101981374,-282.0,0.00043836,30]
[408672869,1774101981415,-234.0,0.00043836,30]
[408672870,1774101981454,-238.0,0.00043836,30]
[408672871,1774101981495,-442.0,0.00043836,30]
[408672872,1774101981534,-150.0,0.00043836,30]
[408672873,1774101981575,-176.0,0.00043836,30]
[408672874,1774101981713,-441.0,0.00043836,30]
[408672875,1774101981759,-150.0,0.00043836,30]
[408672876,1774101981801,-170.0,0.00043836,30]
[408672877,1774101981842,-446.0,0.00043836,30]
[408672878,1774101981883,-309.0,0.00043836,30]
[408672879,1774101981924,-449.0,0.00043836,30]
[408672880,1774101981963,-150.0,0.00043836,30]
[408672881,1774101982002,-156.0,0.00043836,30]
[408672882,1774101982044,-450.0,0.00043836,30]
[408672883,1774101982087,-309.0,0.00043836,30]
[408672884,1774101982127,-200.0,0.00043836,30]
[408672885,1774101982169,-252.0,0.00043836,30]
[408672886,1774101982210,-310.0,0.00043836,30]
[408672887,1774101982251,-193.592427,0.00043836,120]
[408672888,1774101982290,-193.592427,0.00043836,120]
[408672889,1774101982327,-193.592427,0.00043836,120]
[408672890,1774101982366,-193.592427,0.00043836,120]
[408672891,1774101982406,-856.74638203,0.00043981,95]
[408672892,1774101982443,-40443.23646126,0.00044,30]
[408672893,1774101982480,-303.9803086,0.00044,120]
[408672894,1774101982517,-1545.3518319,0.00044,120]
[408672895,1774101982556,-500.0,0.00044,45]
[408672896,1774101982595,-500.0,0.00044,45]
[408672897,1774101982642,-500.0,0.00044,45]
[408672898,1774101982683,-500.0,0.00044,45]
[408672899,1774101982727,-500.0,0.00044,45]
[408672900,1774101982766,-500.0,0.00044,45]
[408672901,1774101982806,-500.0,0.00044,45]
[408672902,1774101982844,-500.0,0.00044,45]
[408672903,1774101982883,-500.0,0.00044,45]
[408672904,1774101982922,-500.0,0.00044,45]
[408672905,1774101982959,-756.46303761,0.00044,120]
[408672906,1774101982998,-150.0,0.00044,57]
[408672907,1774101983036,-300.0,0.00044005,107]
[408672908,1774101983072,-463.1025624,0.00044102,120]
[408672909,1774101983111,-414.73,0.00044244,120]
[408672910,1774101983149,-167.24007495,0.00044384,30]
[408672911,1774101983186,-2002.0,0.000444,120]
[408672912,1774101983224,-494.41673594,0.00044424,120]
[408672913,1774101983262,-244.53,0.0004444,120]
[408672914,1774101983299,-244.53,0.0004444,120]
[408672915,1774101983336,-244.53,0.0004444,120]
[408672916,1774101983376,-244.53,0.0004444,120]
[408672917,1774101983414,-500.0,0.000445,45]
[408672918,1774101983452,-500.0,0.000445,45]
[408672919,1774101983490,-500.0,0.000445,45]
[408672920,1774101983528,-500.0,0.000445,45]
[408672921,1774101983567,-500.0,0.000445,45]